Cogmind - Beta 12 @@@ ROGUE MODE // 2023.07.05 @ 01:57:34 Player: kicktown Result: Destroyed by Y-45 Defender with Beam Rifle Performance ------------- Evolutions (2) 1000 Regions Visited (6) 1200 Robots Destroyed (14) 70 Value Destroyed (462) 462 Prototype IDs (0) 0 Alien Tech Used (0) 0 Bonus (0) 0 TOTAL SCORE: 2732 Bonus ------- None Cogmind --------- Core Integrity 0/550 Matter 270/300 Energy 64/100 System Corruption 0% Temperature Cool (9) Movement Walking (120) Location -8/Storage Parts ------- > --- POWER (1) -------- (None) > --- PROPULSION (3) --- Carbon-fiber Leg Carbon-fiber Leg Carbon-fiber Leg > --- UTILITY (5) ------ Visual Processing Unit Advanced Targeting Computer Advanced Targeting Computer Improved Utility Shielding Hacking Suite > --- WEAPON (2) ------- Makeshift Hammer > --- INVENTORY (5) ---- Large Battery (200) ECM Suite Peak State ------------ > --- POWER ------------ (None) > --- PROPULSION ------- Carbon-fiber Leg Carbon-fiber Leg Carbon-fiber Leg > --- UTILITY ---------- Visual Processing Unit Advanced Targeting Computer Advanced Targeting Computer Improved Utility Shielding Hacking Suite > --- WEAPON ----------- Makeshift Hammer > --- INVENTORY -------- Large Battery ECM Suite [Rating: 27] Favorites ----------- Power Light Nuclear Core Engine Light Ion Engine Power Core Light Nuclear Core Propulsion Wheel Treads Light Treads Leg Carbon-fiber Leg Wheel Wheel Flight Unit Cesium-ion Thruster Utility Visual Processing Unit Device ECM Suite Storage Small Storage Unit Processor Visual Processing Unit Hackware Hacking Suite Protection Improved Utility Shielding Weapon Small Laser Energy Gun Small Laser Ballistic Gun Light Assault Rifle Impact Weapon Makeshift Hammer Build | -11 -10 -10 -10 -9 -8 -8 ------- Run | Jun Mat Min Exi Min Mat Sto Slots Evolved 4 | . . . . . 4 . Power . | . . . . . . . Propulsion 1 | . . . . . 1 . Utility 3 | . . . . . 3 . Weapon . | . . . . . . . Parts Attached 31 | 4 5 4 . . 8 10 Power 5 | 1 1 1 . . 1 1 Engine 2 | 1 1 . . . . . Core 3 | . . 1 . . 1 1 Reactor . | . . . . . . . Propulsion 9 | 2 1 1 . . 2 3 Treads 1 | . 1 . . . . . Leg 3 | . . . . . . 3 Wheel 4 | 2 . 1 . . 1 . Hover . | . . . . . . . Flight 1 | . . . . . 1 . Utility 9 | . 2 . . . 4 3 Device 1 | . . . . . 1 . Storage 1 | . 1 . . . . . Processor 4 | . 1 . . . 3 . Hackware 1 | . . . . . . 1 Protection 2 | . . . . . . 2 Artifact . | . . . . . . . Weapon 8 | 1 1 2 . . 1 3 Energy Gun 3 | 1 1 1 . . . . Energy Cannon . | . . . . . . . Ballistic Gun 1 | . . . . . . 1 Ballistic Cannon . | . . . . . . . Launcher . | . . . . . . . Special Weapon . | . . . . . . . Impact Weapon 4 | . . 1 . . 1 2 Slashing Weapon . | . . . . . . . Piercing Weapon . | . . . . . . . Special Melee Weapon . | . . . . . . . Unidentified Prototypes . | . . . . . . . Parts Lost 8 | . 1 2 . . . 5 Power 3 | . 1 . . . . 2 Propulsion 3 | . . 1 . . . 2 Utility . | . . . . . . . Weapon 2 | . . 1 . . . 1 Highest Loss Streak 5 | . 1 2 . . . 5 To Critical Strikes . | . . . . . . . Average Slot Usage (%) 87 | . 84 98 100 100 64 69 Engine 4 | . 13 10 . . . . Core 7 | . . 3 14 14 9 3 Treads 4 | . 12 12 . . . . Leg 1 | . . . . . . 8 Wheel 17 | . 15 15 28 28 9 3 Flight 1 | . . . . . 6 3 Storage 8 | . 4 14 14 14 2 . Processor 17 | . 11 14 14 14 30 27 Hackware 1 | . . . . . . 9 Protection 1 | . . . . . . 7 Energy Gun 14 | . 26 24 14 14 3 . Impact Weapon 7 | . . 2 14 14 3 6 Naked Turns . | . . . . . . . Heaviest Build 14 | 4 10 14 14 14 14 10 Greatest Support 45 | 26 26 26 26 26 26 45 Greatest Overweight (x) 2 | . . . . . 1 2 Average Overweight (x) . | . . . . . . . Largest Inventory Capacity 8 | 5 8 8 8 8 8 5 Average Capacity 6 | 5 5 8 8 8 5 5 Most Carried 8 | 4 8 8 6 7 7 5 Average Carried 5 | 2 5 7 6 6 5 2 Final Capacity 8 | 5 8 8 8 8 5 5 Final Carried 8 | 4 8 6 6 7 5 2 Class Distribution -------------------- 100% | Mutant Dominant Class ---------------- Mutant | -10/Materials Mutant | -10/Mines Mutant | -10/Exiles Mutant | -9/Mines Mutant | -8/Materials Mutant | -8/Storage Resources | -11 -10 -10 -10 -9 -8 -8 ----------- Run | Jun Mat Min Exi Min Mat Sto Matter Collected 445 | 208 82 . . . . 155 Remotely . | . . . . . . . Salvage Created 528 | . 192 108 . . . 228 Parts 24 | . 12 7 . . . 5 Haulers Intercepted . | . . . . . . . Recyclers Shooed 2 | . . 1 . . . 1 Parts Field Recycled . | . . . . . . . Retrieved Matter . | . . . . . . . Parts Self-Destructed . | . . . . . . . Prevented . | . . . . . . . Kills | -11 -10 -10 -10 -9 -8 -8 ------- Run | Jun Mat Min Exi Min Mat Sto Combat Hostiles Destroyed 14 | . 4 3 . . . 7 Melee 4 | . . 1 . . . 3 Guns 6 | . 4 2 . . . . Classes Destroyed 5 | . 2 1 . . . 2 Watcher 1 | . 1 . . . . . Swarmer 3 | . . . . . . 3 Grunt 9 | . 4 2 . . . 3 Sentry 1 | . . . . . . 1 Assembled 1 | . . 1 . . . . Best Kill Streak 5 | . 2 2 . . . 5 Combat Bots Only 5 | . 2 2 . . . 5 Max Kills in Single Turn 1 | . 1 1 . . . 1 Gunslinging . | . . . . . . . Exploded . | . . . . . . . Melee 1 | . . 1 . . . 1 Uniques/NPCs Destroyed . | . . . . . . . Combat | -11 -10 -10 -10 -9 -8 -8 -------- Run | Jun Mat Min Exi Min Mat Sto Damage Taken 1448 | . 223 193 . . 43 989 Core 644 | . 33 50 . . 14 547 Absorbed by Shields . | . . . . . . . Redirected to Shielding 15 | . . . . . . 15 Core Remaining (%) 83 | 100 . . . 66 . . Volleys Fired 31 | . 25 6 . . . . Largest 2 | . 2 2 . . . . Hottest 80 | . 80 80 . . . . Shots Fired 61 | . 50 11 . . . . Gun 61 | . 50 11 . . . . Cannon . | . . . . . . . Launcher . | . . . . . . . Special . | . . . . . . . Kinetic . | . . . . . . . Thermal 61 | . 50 11 . . . . Explosive . | . . . . . . . Electromagnetic . | . . . . . . . Robot Hit Streak 7 | . 7 3 . . . . Robot Miss Streak 2 | . 2 1 . . . . Penetration Max . | . . . . . . . Secondary Targets . | . . . . . . . Shots Hit Robots 65 | . 34 9 . . . 22 Core Hits 21 | . 13 5 . . . 3 Critical Kills . | . . . . . . . Critical Parts Destroyed 4 | . . . . . . 4 Critical Strikes 4 | . . . . . . 4 Smash 4 | . . . . . . 4 Melee Attacks 48 | . . 4 . . 4 40 Impact 48 | . . 4 . . 4 40 Slashing . | . . . . . . . Piercing . | . . . . . . . Sneak Attacks 2 | . . . . . . 2 Combat Hostiles . | . . . . . . . Follow-up Attacks . | . . . . . . . Damage Inflicted 1578 | . 379 191 . . . 1008 Guns 464 | . 373 91 . . . . Cannons . | . . . . . . . Explosions . | . . . . . . . Melee 1108 | . . 100 . . . 1008 Ramming 6 | . 6 . . . . . Kinetic . | . . . . . . . Thermal 464 | . 373 91 . . . . Explosive . | . . . . . . . Electromagnetic . | . . . . . . . Impact 1108 | . . 100 . . . 1008 Slashing . | . . . . . . . Piercing . | . . . . . . . Highest Corruption . | . . . . . . . Average Corruption . | . . . . . . . Corruption Purged . | . . . . . . . Corruption Blocked . | . . . . . . . Overload Shots . | . . . . . . . Overflow Damage 268 | . . 50 . . . 218 Projectiles . | . . . . . . . Explosions . | . . . . . . . Melee 268 | . . 50 . . . 218 Knockbacks 5 | . . 1 . . . 4 Impact 5 | . . 1 . . . 4 Kinetic . | . . . . . . . Secondary . | . . . . . . . Self-Inflicted Damage 3 | . 3 . . . . . Shots . | . . . . . . . Rammed 2 | . 2 . . . . . Targets Rammed 2 | . 2 . . . . . Kicked . | . . . . . . . Crushed . | . . . . . . . Highest Temperature 159 | . 159 73 . . . . Average Temperature 50 | . 54 33 . . . . Received Heat Transfer 504 | . 102 42 . . 9 351 Siege Activations . | . . . . . . . Robots Corrupted . | . . . . . . . Combat Hostiles . | . . . . . . . Parts Fried 2 | . . . . . . 2 Impact Corruptions 9 | . . 1 . . . 8 Robots Melted . | . . . . . . . Combat Hostiles . | . . . . . . . Parts Melted 4 | . 4 . . . . . Heat Transferred 1050 | . 850 200 . . . . Parts Sabotaged . | . . . . . . . Parts Stolen . | . . . . . . . Parts Stripped . | . . . . . . . Power Chain Reactions . | . . . . . . . Missiles Intercepted . | . . . . . . . Alert | -11 -10 -10 -10 -9 -8 -8 ------- Run | Jun Mat Min Exi Min Mat Sto Peak Influence 354 | . 137 103 . . 77 354 Initial 53 | . . 53 . . . 32 Average 91 | . 67 66 . . 28 181 Maximum Alert Level 1 | . . . . . . 1 Low Security (%) 85 | 100 100 100 . 100 100 52 Level 1 14 | . . . . . . 47 Level 2 . | . . . . . . . Level 3 . | . . . . . . . Level 4 . | . . . . . . . Level 5 . | . . . . . . . High Security . | . . . . . . . Max Security . | . . . . . . . Squads Dispatched 5 | . 3 . . . 1 1 Investigation . | . . . . . . . Extermination . | . . . . . . . Reinforcement 5 | . 3 . . . 1 1 Assault . | . . . . . . . Garrison . | . . . . . . . Intercept . | . . . . . . . Searches Triggered . | . . . . . . . Construction Impeded . | . . . . . . . Haulers Reinforced . | . . . . . . . Active Scanning Responses . | . . . . . . . Cargo Convoy Interrupts . | . . . . . . . Stealth | -11 -10 -10 -10 -9 -8 -8 --------- Run | Jun Mat Min Exi Min Mat Sto Distress Signals 1 | . . . . . . 1 Communications Jammed . | . . . . . . . Distress Signals . | . . . . . . . Times Spotted 38 | . 9 4 . . 7 18 Peak Tracking Total 12 | . 4 2 . . 6 12 Tactical Retreats 8 | . . 1 . . 1 6 Traps | -11 -10 -10 -10 -9 -8 -8 ------- Run | Jun Mat Min Exi Min Mat Sto Traps Triggered 1 | . 1 . . . . . Indirectly . | . . . . . . . Trap Hack Attempts . | . . . . . . . Triggered . | . . . . . . . Disarmed . | . . . . . . . Reprogrammed . | . . . . . . . Reused . | . . . . . . . Traps Extracted . | . . . . . . . Installed . | . . . . . . . Triggered . | . . . . . . . Machines | -11 -10 -10 -10 -9 -8 -8 ---------- Run | Jun Mat Min Exi Min Mat Sto Machines Disabled . | . . . . . . . Max in Single Turn . | . . . . . . . Machines Repaired . | . . . . . . . Machines Sabotaged . | . . . . . . . Overloaded Fab Kills . | . . . . . . . Hacking | -11 -10 -10 -10 -9 -8 -8 --------- Run | Jun Mat Min Exi Min Mat Sto Machines Accessed 8 | . 3 . 1 . 1 3 Terminals 7 | . 3 . . . 1 3 Fabricators . | . . . . . . . Repair Stations . | . . . . . . . Recycling Units . | . . . . . . . Scanalyzers . | . . . . . . . Garrison Access . | . . . . . . . Total Hacks 21 | . 3 . 14 . 1 3 Successful 17 | . 1 . 14 . 1 1 Failed 4 | . 2 . . . . 2 Catastrophic . | . . . . . . . Database Lockouts . | . . . . . . . Manual 4 | . 1 . . . . 3 Terminals 7 | . 3 . . . 1 3 Fabricators . | . . . . . . . Repair Stations . | . . . . . . . Recycling Units . | . . . . . . . Scanalyzers . | . . . . . . . Garrison Access . | . . . . . . . Terminal Hacks 17 | . 1 . 14 . 1 1 Record 14 | . . . 14 . . . Robot Analysis 1 | . . . . . 1 . Unreport Threat 1 | . . . . . . 1 Maintenance Status 1 | . 1 . . . . . Fabricator Hacks . | . . . . . . . Repair Station Hacks . | . . . . . . . Recycling Unit Hacks . | . . . . . . . Scanalyzer . | . . . . . . . Garrison Access Hacks . | . . . . . . . Unauthorized Hacks . | . . . . . . . Terminals . | . . . . . . . Fabricators . | . . . . . . . Repair Stations . | . . . . . . . Recycling Units . | . . . . . . . Scanalyzers . | . . . . . . . Garrison Access . | . . . . . . . Data Cores Recovered . | . . . . . . . Used . | . . . . . . . Hacking Detections 3 | . 1 . . . . 2 Full Trace Events . | . . . . . . . Feedback Events . | . . . . . . . Feedback Blocked . | . . . . . . . Robot Schematics Acquired . | . . . . . . . Robots Built . | . . . . . . . Authchips . | . . . . . . . Time . | . . . . . . . Total Robot Build Rating . | . . . . . . . Part Schematics Acquired . | . . . . . . . Parts Built . | . . . . . . . Authchips . | . . . . . . . Time . | . . . . . . . Total Part Build Rating . | . . . . . . . Parts Repaired . | . . . . . . . Time . | . . . . . . . Parts Recycled . | . . . . . . . Recycled Matter . | . . . . . . . Retrieved Matter . | . . . . . . . Retrieved Components . | . . . . . . . Parts Scanalyzed . | . . . . . . . Part Schematics Acquired . | . . . . . . . Parts Damaged . | . . . . . . . Bothacking | -11 -10 -10 -10 -9 -8 -8 ------------ Run | Jun Mat Min Exi Min Mat Sto Used RIF Installer . | . . . . . . . Robots Hacked . | . . . . . . . Non-combat . | . . . . . . . Combat . | . . . . . . . Robot Hacks Applied . | . . . . . . . Relay Couplers Released . | . . . . . . . Fabnet Peak Effective % . | . . . . . . . Robots Rewired . | . . . . . . . Allies Hacked . | . . . . . . . Hacks Repelled . | . . . . . . . Allies | -11 -10 -10 -10 -9 -8 -8 -------- Run | Jun Mat Min Exi Min Mat Sto Total Allies . | . . . . . . . Largest Group . | . . . . . . . Highest-Rated Group . | . . . . . . . Highest-Rated Ally . | . . . . . . . Total Orders . | . . . . . . . Ally Attacks . | . . . . . . . Total Damage . | . . . . . . . Kills . | . . . . . . . Allies Corrupted . | . . . . . . . Allies Melted . | . . . . . . . Intel | -11 -10 -10 -10 -9 -8 -8 ------- Run | Jun Mat Min Exi Min Mat Sto Robot Analysis Total 1 | . . . . . 1 . Derelict Logs Recovered . | . . . . . . . Drone Launches . | . . . . . . . Drone Recoveries . | . . . . . . . Exploration | -11 -10 -10 -10 -9 -8 -8 ------------- Run | Jun Mat Min Exi Min Mat Sto Turns Passed 1356 | 36 307 130 478 46 94 265 Spaces Moved 1205 | 32 170 107 531 50 130 185 Core 14 | 3 . . . . . 11 Treads 55 | . 50 5 . . . . Legs 67 | . . . . . . 67 Wheels 928 | 29 120 102 531 50 29 67 Hover . | . . . . . . . Flight 141 | . . . . . 101 40 Fastest Speed 35 | 50 80 80 90 90 35 40 Average Speed 86 | 83 105 84 90 90 49 87 Slowest Speed 160 | 90 160 160 90 90 120 150 Overloaded Moves . | . . . . . . . Propulsion Burnouts . | . . . . . . . Robots Hopped . | . . . . . . . Cave-ins Triggered . | . . . . . . . Exploration Rate (%) 35 | 3 35 34 92 19 22 46 Regions Visited 6 Branch Regions 4 Pre-discovered Areas 2 | . . 1 1 . . . Known Exits Taken . | . . . . . . . Unknown Exits Taken 6 | 1 1 1 1 1 1 . Scrap Searched 1 | . . 1 . . . . Spaces Dug 8 | . . . . . 4 4 Terrain Destroyed 8 | . . . . . 4 4 Melee 8 | . . . . . 4 4 Projectile . | . . . . . . . AOE . | . . . . . . . Terrain Rammed . | . . . . . . . Walls Destroyed . | . . . . . . . Machines Disabled . | . . . . . . . Actions | -11 -10 -10 -10 -9 -8 -8 --------- Run | Jun Mat Min Exi Min Mat Sto Total 1407 | 39 247 133 530 50 160 248 Wait 53 | . 37 6 . . . 10 Move 1199 | 31 169 106 530 49 129 185 Hop . | . . . . . . . Pick Up 21 | 4 8 3 . 1 5 . Fast Attach 14 | 4 1 . . . 5 4 Attach 13 | . 3 2 . . 2 6 Detach 6 | . . . . . 3 3 Swap 4 | . 1 2 . . 1 . Drop 16 | . 1 4 . . 11 . Fire 31 | . 25 6 . . . . Melee 48 | . . 4 . . 4 40 Ram 2 | . 2 . . . . . Kick . | . . . . . . . Crush . | . . . . . . . Escape Stasis . | . . . . . . . Rewire . | . . . . . . . Trap . | . . . . . . . Miscellaneous . | . . . . . . . Route ------- -11/Junkyard -10/Materials -10/Mines -10/Exiles (discovered 2 exits: [*Min x2]) -9/Mines -8/Materials -8/Storage History --------- Turn | Location | Event 17 | -11/Junkyard | Discovered new exit (range 16) 37 | -11/Junkyard | Entered Materials 204 | -10/Materials | Discovered new exit (range 6) 305 | -10/Materials | Build established: Mutant 344 | -10/Materials | Entered Mines 345 | -10/Mines | Learned location of Storage (-8) 345 | -10/Mines | Assembled infested the area 350 | -10/Mines | Assisted by a Guerilla fighting off Assembled 403 | -10/Mines | A weapon hastily lodged in a ceiling crevice suddenly fell to the ground 470 | -10/Mines | Deemed a non-threat by the Exiles lab entrance 470 | -10/Mines | Discovered new exit (range 5) 474 | -10/Mines | Entered Exiles 499 | -10/Exiles | Met 8R-AWN 513 | -10/Exiles | Met EX-HEX 592 | -10/Exiles | Met EX-DEC 608 | -10/Exiles | Visited The Gauntlet 730 | -10/Exiles | Learned location of Zion (-7) 773 | -10/Exiles | Discovered new exit (range 10) 824 | -10/Exiles | Met EX-BIN 942 | -10/Exiles | Discovered new exit (range 14) 952 | -10/Exiles | Entered Mines 971 | -9/Mines | Discovered new exit (range 16) 980 | -9/Mines | Received a Rocket Launcher from a helpful Derelict 998 | -9/Mines | Entered Materials 998 | -8/Materials | Evolved 4 slots: Propulsion x1, Utility x3 1071 | -8/Materials | Discovered new exit (range 4) 1092 | -8/Materials | Entered Storage 1218 | -8/Storage | Core integrity fell below 50% 1240 | -8/Storage | Core integrity fell below 20% 1256 | -8/Storage | Lost 5 parts (2p2n1w) 1357 | -8/Storage | Destroyed by Y-45 Defender with Beam Rifle Last Messages --------------- 01250_ Destroyed Imp. Heat Sink. 01250_ G-47 Trooper system corrupted by crushing effect. 01251_ G-47 Trooper system terminally corrupted. 01256_ Sneak attack on R-06 Scavenger. 01256_ R-06 Scavenger knocked back. 01260_ G-47 Trooper suffers critical hit (Smash). 01260_ Destroyed Aluminum Leg. 01260_ Destroyed Particle Gun. 01260_ G-47 Trooper system corrupted by crushing effect. 01261_ G-47 Trooper system terminally corrupted. 01261_ R-06 Scavenger collects Corrupted Aluminum Leg. 01262_ Acquired 50 matter. 01265_ Sneak attack on R-06 Scavenger. 01265_ R-06 Scavenger knocked back. 01268_ Acquired 46 matter. 01273_ Acquired Carbon-fiber Leg. 01301_ Connecting with Door Terminal... 01335_ K-01 Serf cleans the Terminal. 01339_ Connecting with Terminal... 01345_ K-01 Serf cleans the Component Storage. Map ----- +----------------------------------------------------+ | ?????????????????????????????????????????????????? | | ?????????????????????????????????????????????????? | | ?????????????????????????????????????????????????? | | ?????????????????????????????????????????????????? | | ?????????????????????????????????????????????????? | | ?????????????????????????????????????????????????? | | ?????????????????????????????????????????????????? | | ?????????????????????????????????????????????????? | | ?????????????????????????????????????????????????? | | ?????????????????????????????????????????????????? | | ?????????????????????????????????????????????????? | | ?????????????????????????????????????????????????? | | ?????????????????????????????????????????????????? | | ?????????????????????????????????????????????????? | | ?????????????????????????????????????????????????? | | ?????????????????????????????????????????????????? | | ?????????????????????????????????????????????????? | | ?????????????????????????????????????????????????? | | ?????????????????????????????????????????????????? | | ?????????????????????????????????????????????????? | | ?????????????????????????????????????????????????? | | ?????????????????????????????????????????????????? | | ?????????????????????????????????????????????????? | | ??????????????????????????###????????????????????? | | ???????????????????????#### ######???????????????? | | ???????????????????????+ @ Y #???????????????? | | ???????????????????????# """ """ ####????????????? | | ???????????????????????# """k""" """#????????????? | | ???????????????????????# """ """ R"#????????????? | | ???????????????????????# """ """ """#????????????? | | ???????????????????????# """g""" ####????????????? | | ???????????????????????# #???????????????? | | ???????????????????????# Y #???????????????? | | ???????????????????????######/####???????????????? | | ??????????####?? ?????#### #?????????????????? | | ?????????? ?? ?????+ T #?????????????????? | | ??#+####### #? ?????#### "" #?????????????????? | | ??? ! # #? ????????# #?????????????????? | | ??? # ##/#????????## #######????????????? | | ????" """ # #?????????# T #????????????? | | ????" """ + #?????????# ^ #????????????? | | ????? """ # #???????? # ^ #????????????? | | ????? # #?????? # """ #????????????? | | ?????? # #????? + """ #????????????? | | ?????? ?# #??? #^ """ #????????????? | | #?????#"#?# ##? ?# #????????????? | | "########## # ??# #????????????? | | # # + ?????# #??????###???? | | # # #####+#??# ##### #???? | | # # #??# #???? | +----------------------------------------------------+ Best States ------------- Heat Dissipation 31 Energy Generation 14 Energy Capacity 160 Matter Stores 300 Matter Capacity 300 Sight Range 18 Terrain Scan Density 10 Utility Shielding 66 Evasion (%) 63 Targeting Accuracy 24 Recoil Reduction 1 Offensive Hacking 10 Item Schematics ----------------- None Robot Schematics ------------------ None Fabricated ------------ Nothing Alien Tech Used ----------------- None Achievements -------------- None Challenges ------------ None Game ------ Seed SkeletonSegregatorRipper Manual? 0 Play Time 00:24:14 Cumulative 58.6 hours Start 2023.07.05 @ 01:35:03 End 2023.07.05 @ 01:57:34 Sessions 1 Manual Loads 0 Difficulty Rogue Special Mode None Game No. 51 Rogue 51 Adventurer 0 Explorer 0 Win Type - Total 0 Types 0/0/0/0/0/0/0/0/0 Lore% 28 Gallery% 46 Achievement% 33 Wizard Run 0 Options --------- ASCII 0 Keyboard 0 Movement Mouse Keybinds 0 Fullscreen 2 Font 18/TerminusBold Map View 76x50 Tactical HUD 1 Map Filters NONE Filters NONE Steam 1 RUN: 52658baa-5c12-4b17-83ed-adfa3d2cab2d